bitfinex-derivatives/quotes_ETHF0:USTF0_20250327
["timestamp","ask_amount","ask_price","bid_price","bid_amount"]
[1743106240646,0.00749606,2003.2,2003.1,1.50470523]
[1743106240853,0.00749606,2003.2,2003.1,23.30470523]
[1743106241152,0.00749606,2003.2,2003.1,2.153271]
[1743106242938,0.00749606,2003.2,2003.1,1.50470523]
[1743106242939,1.00607606,2003.2,2003.1,1.50470523]
[1743106243138,0.00749606,2003.2,2003.1,1.50470523]
[1743106243344,1.00607606,2003.2,2003.1,1.50470523]
[1743106244050,2.40827606,2003.2,2003.1,1.50470523]
[1743106247247,1.40969606,2003.2,2003.1,1.50470523]
[1743106249052,2.40827606,2003.2,2003.1,1.50470523]
[1743106249455,2.40827606,2003.2,2003.1,1.50360241]
[1743106249853,2.40827606,2003.2,2003.1,1.50360663]
[1743106251051,0.9987,2003.1,2002.8,8.90973]
[1743106251251,2.4361,2003.1,2003.0,0.99866]
[1743106251451,2.4361,2003.1,2003.0,1.50375642]
[1743106253355,2.4361,2003.1,2003.0,1.50397111]
[1743106254554,0.99873,2002.9,2002.8,4.20658]
[1743106254743,0.99873,2002.9,2002.8,5.36059842]
[1743106254948,0.99873,2002.9,2002.8,4.36181842]
[1743106255251,2.39153,2002.9,2002.8,4.36181842]
[1743106255450,2.39153,2002.9,2002.8,5.36059842]
[1743106256452,2.39153,2002.9,2002.8,4.36181842]
[1743106257150,2.39153,2002.9,2002.8,5.36118284]
[1743106258456,2.41759,2003.0,2002.9,0.99873]
[1743106258659,2.41759,2003.0,2002.9,1.50478597]
[1743106259056,0.7016,2003.0,2002.9,1.50504264]
[1743106259249,0.7016,2003.0,2002.9,2.86148951]
[1743106259555,1.3721,2003.1,2003.0,0.99868]
[1743106259754,1.3721,2003.1,2003.0,1.50499264]
[1743106259956,0.68079606,2003.2,2003.1,0.99863]
[1743106260253,2.05289606,2003.2,2003.1,5.39315665]
[1743106260453,3.05147606,2003.2,2003.1,5.39315665]
[1743106260654,3.05147606,2003.2,2003.1,6.04170352]
[1743106260857,3.05147606,2003.2,2003.1,6.04236197]
[1743106262151,3.05147606,2003.2,2003.1,5.04489901]
[1743106262555,2.05289606,2003.2,2003.1,6.04352901]
[1743106262859,3.05147606,2003.2,2003.1,1.83709901]
[1743106264358,3.05147606,2003.2,2003.1,1.15602401]
[1743106264543,3.05147606,2003.2,2002.8,3.2078]
[1743106264544,4.99344,2003.0,2002.5,7.8213]
[1743106264749,0.99888,2002.6,2002.5,7.8213]
[1743106264947,0.99888,2002.6,2002.5,8.50277535]
[1743106265144,0.99888,2002.6,2002.5,30.30277535]
[1743106265348,0.99888,2002.6,2002.5,31.30170535]
[1743106265556,0.99888,2002.6,2002.5,30.30277535]
[1743106265960,0.99888,2002.6,2002.5,31.30170535]
[1743106266351,0.99888,2002.6,2002.5,30.30277535]
[1743106267671,0.99888,2002.6,2002.5,31.30170535]
[1743106267961,0.99888,2002.6,2002.5,28.89427535]
[1743106268362,2.41748,2002.6,2002.5,28.89427535]
[1743106268563,2.41748,2002.6,2002.5,7.09427535]
[1743106268753,2.41748,2002.6,2002.5,3.88647535]
[1743106269760,2.41748,2002.6,2002.5,3.88542321]
[1743106270449,2.41748,2002.6,2002.5,0.68042321]
[1743106270759,0.99903,2002.3,2002.2,6.4128]
[1743106270961,0.99903,2002.3,2002.2,7.09312588]
[1743106271155,0.99903,2002.3,2002.2,25.68812588]
[1743106271351,0.99908,2002.2,2002.1,0.00749606]
[1743106271554,1.65578,2002.2,2002.1,0.00749606]
[1743106271959,3.00478,2002.2,2002.1,0.00749606]
[1743106277456,3.00478,2002.2,2002.1,6.06e-06]
[1743106278769,5.50478,2002.2,2002.1,6.06e-06]
[1743106286069,6.20798,2002.2,2002.1,6.06e-06]
[1743106287573,3.70798,2002.2,2002.1,6.06e-06]
[1743106292876,0.99908,2002.2,2002.1,6.06e-06]
[1743106293069,0.99908,2002.2,2002.1,0.99913606]
[1743106293979,0.99908,2002.2,2002.1,2.39213606]
[1743106296174,0.99908,2002.2,2002.1,1.39300606]
[1743106296373,2.35588,2002.2,2002.1,1.39300606]
[1743106297481,2.35588,2002.2,2002.1,1.89331497]
[1743106298177,2.35588,2002.2,2002.1,1.39300606]
[1743106300278,2.35588,2002.2,2002.1,1.89423974]
[1743106301575,3.02738,2002.2,2002.1,1.89423974]
[1743106301979,6.23338,2002.2,2002.1,1.89423974]
[1743106302479,6.23338,2002.2,2002.1,1.39300606]
[1743106303577,6.23338,2002.2,2002.1,6.06e-06]
[1743106306684,8.73338,2002.2,2002.1,6.06e-06]
[1743106311584,6.23338,2002.2,2002.1,6.06e-06]
[1743106314183,8.73338,2002.2,2002.1,6.06e-06]
[1743106314586,6.23338,2002.2,2002.1,6.06e-06]
[1743106315392,8.73338,2002.2,2002.1,6.06e-06]
[1743106315593,0.99958,2001.2,2001.1,3.2078]
[1743106315799,0.99958,2001.2,2001.1,1.18227404]
[1743106316092,0.99958,2001.2,2001.1,0.50134004]
[1743106316282,0.99958,2001.2,2001.1,1.14748199]
[1743106316890,0.99958,2001.2,2001.1,1.84598199]
[1743106318797,0.99958,2001.2,2001.1,3.20088199]
[1743106320606,0.99958,2001.2,2001.1,3.20012902]
[1743106321398,4.20738,2001.2,2001.1,3.20012902]
[1743106322096,4.20738,2001.2,2001.1,3.19999256]
[1743106322290,4.20738,2001.2,2001.1,4.19962256]
[1743106322593,4.20738,2001.2,2001.1,3.55348061]
[1743106322798,4.20738,2001.2,2001.1,2.55385061]
[1743106323096,4.20738,2001.2,2001.1,3.55348061]
[1743106324990,4.20738,2001.2,2001.1,4.19825884]
[1743106325591,0.99956,2001.3,2001.2,0.99953]
[1743106325785,0.99956,2001.3,2001.2,2.82551124]
[1743106326291,0.99956,2001.3,2001.2,3.47028947]
[1743106327791,1.00699606,2001.4,2001.3,0.99953]
[1743106327991,1.00699606,2001.4,2001.3,3.50041124]
[1743106328194,1.00699606,2001.4,2001.3,4.14518947]
[1743106328899,1.00697606,2001.4,2001.3,4.14518947]
[1743106329491,1.00697606,2001.4,2001.3,4.14557052]
[1743106329691,0.00749606,2001.4,2001.3,4.14557052]
[1743106329887,0.00749606,2001.4,2001.3,4.82556167]
[1743106331393,0.00749606,2001.4,2001.3,4.82590284]
[1743106333196,3.2078,2001.5,2001.4,0.99948]
[1743106333402,3.2078,2001.5,2001.4,3.52127762]
[1743106333902,3.2078,2001.5,2001.4,4.16605585]
[1743106334695,4.20723,2001.5,2001.4,4.16605585]
[1743106335301,4.20723,2001.5,2001.4,4.16612031]
[1743106337103,3.2078,2001.5,2001.4,4.16612031]
[1743106337309,3.2078,2001.5,2001.4,4.16617183]
[1743106338011,3.2078,2001.5,2001.4,4.84696507]
[1743106338197,4.20723,2001.5,2001.4,4.84696507]
[1743106338506,3.2078,2001.5,2001.4,4.84696507]
[1743106339109,3.2078,2001.5,2001.4,4.8470065]
[1743106341216,3.2078,2001.5,2001.4,4.84711476]
[1743106341708,4.544,2001.5,2001.4,8.05311476]
[1743106344005,1.3362,2001.5,2001.4,8.05311476]
[1743106344207,2.33563,2001.5,2001.4,8.05311476]
[1743106344412,1.3362,2001.5,2001.4,8.05311476]
[1743106345522,2.33563,2001.5,2001.4,8.05311476]
[1743106345718,1.3362,2001.5,2001.4,8.05311476]
[1743106346812,1.3362,2001.5,2001.4,8.05340705]
[1743106348517,1.3362,2001.5,2001.4,7.40873049]
[1743106348711,2.33563,2001.5,2001.4,8.05505301]
[1743106350524,1.3362,2001.5,2001.4,8.05526691]
[1743106354428,1.3362,2001.5,2001.4,8.05573917]
[1743106356119,1.3362,2001.5,2001.4,6.87250252]
[1743106356419,2.0306,2001.5,2001.4,8.05646113]
[1743106358234,2.0306,2001.5,2001.4,8.05680485]
[1743106363735,2.0306,2001.5,2001.4,8.05694682]
[1743106364038,4.20696,2002.1,2001.9,0.99923]
[1743106364242,4.20696,2002.1,2002.0,3.57389991]
[1743106364435,4.92856,2002.1,2002.0,4.255729]
[1743106364635,3.9294,2002.1,2002.0,4.255729]
[1743106364934,0.7216,2002.1,2002.0,4.255729]
[1743106365330,0.7216,2002.1,2002.0,4.937329]
[1743106365643,0.7216,2002.1,2002.0,4.93690281]
[1743106366541,1.66212606,2002.3,2002.2,0.99908]
[1743106366841,1.66212606,2002.3,2002.2,1.50127739]
[1743106367040,3.07952606,2002.3,2002.2,1.50127739]
[1743106367235,3.07952606,2002.3,2002.2,2.14759991]
[1743106367436,3.07952606,2002.3,2002.2,1.64540252]
[1743106367636,3.07952606,2002.3,2002.2,2.14659945]
[1743106370331,3.07952606,2002.3,2002.2,2.14626909]
[1743106373243,3.07952606,2002.3,2002.2,1.64540252]
[1743106373434,3.07952606,2002.3,2002.2,2.14593171]
[1743106376043,3.07952606,2002.3,2002.2,1.49960919]
[1743106376844,3.07952606,2002.3,2002.2,2.14443419]
[1743106377143,3.07952606,2002.3,2002.2,2.14423006]
[1743106378147,3.07952606,2002.3,2002.2,3.55803006]
[1743106378649,2.08049606,2002.3,2002.2,3.55803006]
[1743106378940,3.07952606,2002.3,2002.2,3.55797844]
[1743106380441,2.08049606,2002.3,2002.2,3.55797844]
[1743106380643,3.07952606,2002.3,2002.2,3.55797844]
[1743106380845,3.07952606,2002.3,2002.2,3.55797333]
[1743106382339,0.00749606,2002.3,2002.2,3.55797333]
[1743106382546,0.00749606,2002.3,2002.2,4.23748087]
[1743106383044,1.32589606,2002.3,2002.2,4.23748087]
[1743106384050,1.32589606,2002.3,2002.2,4.23742601]
[1743106384853,1.32589606,2002.3,2002.2,4.23739272]
[1743106385050,1.32589606,2002.3,2002.2,4.23727132]
[1743106385853,1.32589606,2002.3,2002.2,2.41288]
[1743106386057,1.32589606,2002.3,2002.2,4.23709389]
[1743106386355,2.32492606,2002.3,2002.2,4.23709389]
[1743106386651,1.32589606,2002.3,2002.2,3.55770935]
[1743106387258,1.32589606,2002.3,2002.2,4.23726882]
[1743106387756,2.32492606,2002.3,2002.2,2.82346882]
[1743106388060,2.32492606,2002.3,2002.2,3.56820935]
[1743106389755,2.32492606,2002.3,2002.2,3.56860729]
[1743106390357,2.32492606,2002.3,2002.2,2.56952729]
[1743106390857,2.32492606,2002.3,2002.2,3.56860729]
[1743106391058,2.32492606,2002.3,2002.2,2.56952729]
[1743106391553,2.32492606,2002.3,2002.2,2.56990024]
[1743106392253,2.32492606,2002.3,2002.2,1.14560024]
[1743106392453,5.53272606,2002.3,2002.2,1.14560024]
[1743106392858,5.53272606,2002.3,2002.2,0.64464736]
[1743106393050,0.99913,2002.1,2002.0,0.00749606]
[1743106393256,0.99913,2002.1,2002.0,0.50877495]
[1743106393454,0.99913,2002.1,2002.0,1.15548505]
[1743106393656,2.42463,2002.1,2002.0,1.15548505]
[1743106395466,2.42463,2002.1,2002.0,1.15548888]
[1743106395765,2.42463,2002.1,2002.0,2.56298888]
[1743106396066,2.42463,2002.1,2002.0,4.24341734]
[1743106396566,2.42463,2002.1,2002.0,3.24423734]
[1743106396863,2.42463,2002.1,2002.0,4.24341734]
[1743106397076,2.42463,2002.1,2002.0,3.24423734]
[1743106397364,2.42463,2002.1,2002.0,4.24338249]
[1743106397958,2.42463,2002.1,2002.0,2.56295403]
[1743106398973,2.42463,2002.1,2002.0,1.15545403]
[1743106399166,2.42463,2002.1,2002.0,1.15540922]
[1743106399562,2.42463,2002.1,2002.0,2.50150922]
[1743106400669,2.42463,2002.1,2002.0,3.50068922]
[1743106401072,2.42463,2002.1,2002.0,4.17168922]
[1743106402471,2.42463,2002.1,2002.0,3.17250922]
[1743106402864,2.42463,2002.1,2002.0,2.50150922]
[1743106403067,2.42463,2002.1,2002.0,1.15540922]
[1743106403871,2.42463,2002.1,2002.0,2.53980922]
[1743106404864,2.42463,2002.1,2002.0,3.53877185]
[1743106405069,2.42463,2002.1,2002.0,2.53959185]
[1743106406475,2.42463,2002.1,2002.0,3.53877185]
[1743106406672,2.42463,2002.1,2002.0,2.53954901]
[1743106410468,2.42463,2002.1,2002.0,2.53951052]
[1743106414378,2.42463,2002.1,2002.0,2.53966484]
[1743106416172,2.42463,2002.1,2002.0,2.03832111]
[1743106416373,2.42463,2002.1,2002.0,2.53996832]
[1743106418078,2.42463,2002.1,2002.0,2.03832111]
[1743106418380,2.42463,2002.1,2002.0,2.5400853]
[1743106419974,2.42463,2002.1,2002.0,2.03832111]
[1743106420174,2.42463,2002.1,2002.0,2.54025647]
[1743106421176,2.42463,2002.1,2002.0,3.22233086]
[1743106421382,2.42463,2002.1,2002.0,3.53943647]
[1743106421576,2.42463,2002.1,2002.0,3.22233396]
[1743106422677,2.42463,2002.1,2002.0,4.22151396]
[1743106422984,0.99913,2002.1,2002.0,4.22151396]
[1743106423385,0.99913,2002.1,2002.0,4.91771396]
[1743106423882,0.99913,2002.1,2002.0,4.91788007]
[1743106425690,0.99913,2002.1,2002.0,4.91790514]
[1743106429584,0.99913,2002.1,2002.0,4.91762124]
[1743106429786,5.55722,2002.2,2002.1,0.99913]
[1743106429982,5.55722,2002.2,2002.1,4.24715013]
[1743106430284,5.55722,2002.2,2002.1,4.89357518]
[1743106430482,5.55722,2002.2,2002.1,3.70965505]
[1743106430880,5.55722,2002.2,2002.1,4.89351091]
[1743106431183,5.55722,2002.2,2002.1,3.70965505]
[1743106431977,5.55722,2002.2,2002.1,4.2116533]
[1743106432284,2.34942,2002.2,2002.1,3.70965505]
[1743106432485,2.34942,2002.2,2002.1,4.8934683]
[1743106433384,2.34942,2002.2,2002.1,4.89344077]
[1743106435186,2.34942,2002.2,2002.1,4.89336768]
[1743106437091,2.34942,2002.2,2002.1,4.89325303]
[1743106437390,2.34942,2002.2,2002.1,4.21154922]
[1743106439496,2.34942,2002.2,2002.1,3.51874922]
[1743106441901,2.34942,2002.2,2002.1,2.51961922]
[1743106442196,5.55722,2002.2,2002.1,2.51966151]
[1743106442993,3.2078,2002.5,2002.2,0.99908]
[1743106443196,3.2078,2002.5,2002.4,0.99898]
[1743106443393,3.2078,2002.5,2002.4,5.38568242]
[1743106443598,3.2078,2002.5,2002.4,7.42250747]
[1743106443900,4.20673,2002.5,2002.4,7.42250747]
[1743106444198,5.58313,2002.5,2002.4,8.12032965]
[1743106445797,5.58313,2002.5,2002.4,6.03142965]
[1743106445997,5.58313,2002.5,2002.4,5.3496683]
[1743106446292,5.58313,2002.5,2002.4,2.1466683]
[1743106447604,5.58313,2002.5,2002.4,1.1476883]
[1743106447805,5.58313,2002.5,2002.4,1.14760904]
[1743106448102,5.58313,2002.5,2002.4,2.53350904]
[1743106449696,5.58313,2002.5,2002.4,3.53251452]
[1743106449999,5.58313,2002.5,2002.4,2.53352723]
[1743106450897,5.58313,2002.5,2002.4,3.53250723]
[1743106452502,4.5842,2002.5,2002.4,3.53250723]
[1743106452702,5.58313,2002.5,2002.4,4.21333741]
[1743106453099,5.58313,2002.5,2002.4,4.91963741]
[1743106453501,5.58313,2002.5,2002.4,3.73760505]
[1743106453807,5.58313,2002.5,2002.4,4.91955906]
[1743106454206,2.33185606,2002.7,2002.6,0.99888]
[1743106454393,2.70499606,2002.7,2002.6,1.50007387]
[1743106454698,0.00749606,2002.7,2002.6,2.14649892]
[1743106454900,3.2078,2002.9,2002.8,0.99878]
[1743106455098,4.20653,2002.9,2002.8,1.49997387]
[1743106455303,5.57853,2002.9,2002.8,1.49997387]
[1743106455498,5.57853,2002.9,2002.8,2.81047387]
[1743106455897,5.57853,2002.9,2002.8,3.45689892]
[1743106456503,2.37073,2002.9,2002.8,3.45689892]
[1743106457108,0.6833,2003.0,2002.9,0.99873]
[1743106457408,1.313,2003.0,2002.9,3.54257538]
[1743106457701,1.313,2003.0,2002.9,4.26567538]
[1743106457906,2.31168,2003.0,2002.9,4.91210043]
[1743106458406,2.31168,2003.0,2002.9,4.23234892]
[1743106459197,2.31168,2003.0,2002.9,4.23118503]
[1743106463005,2.31168,2003.0,2002.9,4.23088659]
[1743106464908,2.31168,2003.0,2002.9,4.23077373]
[1743106466810,2.31168,2003.0,2002.9,4.23074595]
[1743106470699,2.31168,2003.0,2002.9,4.23100055]
[1743106472902,2.31168,2003.0,2002.9,3.50790055]
[1743106473407,1.313,2003.0,2002.9,3.50790055]
[1743106473614,2.31168,2003.0,2002.9,3.50790055]
[1743106479219,2.31168,2003.0,2002.9,4.18803291]
[1743106479718,2.31168,2003.0,2002.9,4.18803277]
[1743106479909,2.31168,2003.0,2002.9,3.50790055]
[1743106480105,2.31168,2003.0,2002.9,3.50878456]
[1743106480310,2.31168,2003.0,2002.9,4.18912978]
[1743106481718,1.00615606,2003.1,2003.0,0.99868]
[1743106482021,0.00749606,2003.1,2003.0,3.53595473]
[1743106482213,0.00749606,2003.1,2003.0,26.73645473]
[1743106482413,0.00749606,2003.1,2003.0,30.58287978]
[1743106482814,0.00749606,2003.1,2003.0,33.79067978]
[1743106483215,5.58945,2003.5,2003.4,0.99848]
[1743106483415,5.58945,2003.5,2003.4,2.17955473]
[1743106484028,5.58945,2003.5,2003.4,2.82729059]
[1743106484617,5.58945,2003.5,2003.4,4.14649059]
[1743106485420,3.2078,2003.5,2003.4,4.14649059]
[1743106485812,3.2078,2003.5,2003.4,4.14626247]
[1743106486731,1.4128,2003.6,2003.5,0.99843]
[1743106487019,1.4128,2003.6,2003.5,4.21461247]
[1743106487224,1.4128,2003.6,2003.5,4.21416654]
[1743106487523,2.37131905,2003.7,2003.6,0.99838]
[1743106487524,0.71288905,2003.7,2003.6,0.99838]
[1743106487827,2.13558905,2003.7,2003.6,4.2137719]
[1743106488017,1.42758905,2003.7,2003.6,7.4137719]
[1743106488925,2.42591905,2003.7,2003.6,7.4137719]
[1743106489625,2.42591905,2003.7,2003.6,7.41260729]
[1743106490319,2.42591905,2003.7,2003.6,6.73284617]
[1743106491529,2.42591905,2003.7,2003.6,6.73252926]
[1743106492421,2.42591905,2003.7,2003.6,6.23240505]
[1743106492727,2.42591905,2003.7,2003.6,6.73241047]
[1743106495431,2.42591905,2003.7,2003.6,6.73218753]
[1743106500837,2.42591905,2003.7,2003.6,6.73208824]
[1743106502535,2.42591905,2003.7,2003.6,6.73213653]
[1743106502925,2.42591905,2003.7,2003.6,5.73375653]
[1743106503431,2.42591905,2003.7,2003.6,6.73213653]
[1743106503934,2.42591905,2003.7,2003.6,5.73375653]
[1743106504236,2.42591905,2003.7,2003.6,5.73391925]
[1743106504440,2.42591905,2003.7,2003.6,4.34631925]
[1743106504933,2.42591905,2003.7,2003.6,1.14631925]
[1743106505134,2.42591905,2003.7,2003.6,0.64642505]
[1743106505441,0.99848,2003.4,2003.3,0.9985]
[1743106505731,0.99848,2003.4,2003.3,3.50445291]
[1743106506333,4.20628,2003.4,2003.3,1.14455291]
[1743106507041,0.99853,2003.3,2003.2,0.00749606]
[1743106507333,3.70573,2003.3,2003.2,1.86910476]
[1743106507837,3.70573,2003.3,2003.2,2.51392067]
[1743106508037,3.70573,2003.3,2003.2,2.51402075]
[1743106509038,3.70573,2003.3,2003.2,1.15262075]
[1743106509632,3.70573,2003.3,2003.2,0.00749606]
[1743106510635,3.70573,2003.3,2003.2,0.50808168]
[1743106511233,3.70573,2003.3,2003.2,0.5081238]
[1743106511737,3.70573,2003.3,2003.2,0.50812073]
[1743106512138,3.70573,2003.3,2003.2,0.00749606]
[1743106512644,3.70573,2003.3,2003.2,0.50808801]
[1743106512844,3.70573,2003.3,2003.2,0.00749606]
[1743106519059,2.7072,2003.3,2002.7,4.87662]
[1743106519242,0.99878,2002.8,2002.7,4.87662]
[1743106519546,0.99878,2002.8,2002.7,6.70000723]
[1743106519937,0.99878,2002.8,2002.7,6.02092687]
[1743106520347,0.99878,2002.8,2002.7,7.38372687]
[1743106521239,0.99878,2002.8,2002.7,7.38368943]
[1743106523252,0.99878,2002.8,2002.7,7.38365969]
[1743106528854,0.99878,2002.8,2002.7,7.38396472]
[1743106530250,0.99878,2002.8,2002.7,1.14453472]
[1743106530447,0.99883,2002.7,2002.6,1.4237]
[1743106530753,3.77743,2002.7,2002.6,1.4237]
[1743106541655,4.20663,2002.8,2002.7,0.99883]
[1743106541862,4.20663,2002.8,2002.7,1.69413]
[1743106542062,4.20663,2002.8,2002.7,2.37503]
[1743106542558,4.20663,2002.8,2002.7,3.51002773]
[1743106542763,4.20663,2002.8,2002.7,4.89822773]
[1743106543154,3.2078,2002.8,2002.7,4.89822773]
[1743106543555,3.2078,2002.8,2002.7,5.57826107]
[1743106543755,3.2078,2002.8,2002.7,5.57829769]
[1743106544862,4.20658,2002.8,2002.7,5.57829769]
[1743106545067,3.2078,2002.8,2002.7,5.57829769]
[1743106545468,4.20658,2002.8,2002.7,5.57829769]
[1743106545670,4.20658,2002.8,2002.7,5.57842882]
[1743106546260,4.20658,2002.8,2002.7,27.37842882]
[1743106547166,3.2078,2002.8,2002.7,5.57842882]
[1743106547667,3.2078,2002.8,2002.7,5.57848647]
[1743106548868,3.2078,2002.8,2002.7,5.5785545]
[1743106550971,4.20658,2002.8,2002.7,5.5785545]
[1743106551373,4.20658,2002.8,2002.7,5.57855971]
[1743106552460,3.2078,2002.8,2002.7,5.57855971]
[1743106552677,3.2078,2002.8,2002.7,5.57859861]
[1743106552866,4.20658,2002.8,2002.7,1.13516723]
[1743106553073,5.58358,2002.8,2002.7,0.41871268]
[1743106553262,0.99888,2002.6,2002.5,0.00749606]
[1743106553668,0.99888,2002.6,2002.0,4.20695]
[1743106553669,0.99908,2002.2,2002.1,1.3271]
[1743106553871,0.99908,2002.2,2002.1,1.82202026]
[1743106554671,2.31018,2002.2,2002.1,1.82202026]
[1743106555274,2.31018,2002.2,2002.1,1.82188822]
[1743106556777,3.03028,2002.2,2002.1,1.82188822]
[1743106556974,3.03028,2002.2,2002.1,2.82101822]
[1743106557174,3.03028,2002.2,2002.1,2.82079631]
[1743106557375,3.03028,2002.2,2002.1,1.82166631]
[1743106557674,3.03028,2002.2,2002.1,2.82079631]
[1743106557977,3.03028,2002.2,2002.1,1.82166631]
[1743106558877,3.03028,2002.2,2002.1,2.82079631]
[1743106559078,3.03028,2002.2,2002.1,1.82152441]
[1743106559981,3.03028,2002.2,2002.1,2.82065441]
[1743106561080,3.03028,2002.2,2002.1,1.82147726]
[1743106561380,3.03028,2002.2,2002.1,1.82143722]
[1743106561773,3.03028,2002.2,2002.1,2.82056722]
[1743106561973,3.03028,2002.2,2002.1,1.82143722]
[1743106562176,0.99908,2002.2,2002.1,2.82052722]
[1743106562369,2.43938,2002.2,2002.1,2.8204351]
[1743106562781,2.43938,2002.2,2002.1,23.6213451]
[1743106563575,2.43938,2002.2,2002.1,24.6204751]
[1743106564578,2.43938,2002.2,2002.1,23.6213451]
[1743106564778,2.43938,2002.2,2002.1,24.6204751]
[1743106565277,2.43938,2002.2,2002.1,2.8204751]
[1743106566298,2.43938,2002.2,2002.1,2.82026936]
[1743106566478,2.43938,2002.2,2002.1,3.47546936]
[1743106568090,2.43938,2002.2,2002.1,2.98143]
[1743106568390,2.43938,2002.2,2002.1,3.47542436]
[1743106568581,2.43938,2002.2,2002.1,4.15902436]
[1743106570481,2.43938,2002.2,2002.1,1.82109436]
[1743106570689,2.43938,2002.2,2002.1,1.3271]
[1743106570986,2.43938,2002.2,2002.1,2.32623]
[1743106571377,2.43938,2002.2,2002.1,1.3271]
[1743106571591,2.43938,2002.2,2002.1,2.32623]
[1743106575293,2.43938,2002.2,2002.1,2.82027257]
[1743106575789,2.43938,2002.2,2002.1,2.82029367]
[1743106577689,2.43938,2002.2,2002.1,2.82055981]
[1743106579586,2.43938,2002.2,2002.1,2.82097117]
[1743106581498,2.43938,2002.2,2002.1,2.82162399]
[1743106581797,0.00749606,2002.4,2002.1,2.82162399]
[1743106582003,0.00749606,2002.4,2002.3,4.20683]
[1743106582209,3.2078,2002.8,2002.7,0.99883]
[1743106582423,4.20658,2002.8,2002.7,2.17520186]
[1743106582622,4.20658,2002.8,2002.7,1.17637186]
[1743106582806,5.53498,2002.8,2002.7,0.49539399]
[1743106583004,5.53498,2002.8,2002.7,2.57488511]
[1743106583200,5.53498,2002.8,2002.7,1.89369399]
[1743106584613,5.53498,2002.8,2002.7,2.89252399]
[1743106587015,5.53498,2002.8,2002.7,2.89208002]
[1743106589534,5.53498,2002.8,2002.7,1.89325002]
[1743106590045,5.53498,2002.8,2002.7,2.89208002]
[1743106590740,5.53498,2002.8,2002.7,1.89325002]
[1743106591037,5.53498,2002.8,2002.7,2.89208002]
[1743106591238,5.53498,2002.8,2002.7,1.89325002]
[1743106591540,5.53498,2002.8,2002.7,2.89208002]
[1743106592722,3.2078,2002.8,2002.7,2.89161352]
[1743106593221,4.20658,2002.8,2002.7,2.89161352]
[1743106593925,5.56948,2002.8,2002.7,2.89161352]
[1743106594631,4.5707,2002.8,2002.7,2.89147475]
[1743106594826,3.2078,2002.8,2002.7,2.89147475]
[1743106595016,4.20658,2002.8,2002.7,2.89147475]
[1743106595218,3.2078,2002.8,2002.7,2.89147475]
[1743106595416,0.00749606,2003.0,2002.9,0.99873]
[1743106595618,0.00749606,2003.0,2002.9,1.49307475]
[1743106596126,0.00749606,2003.0,2002.9,2.93567475]
[1743106596419,0.00749606,2003.0,2002.9,2.44133]
[1743106596625,3.2078,2003.2,2002.9,2.44133]
[1743106596626,3.2078,2003.2,2003.1,0.99863]
[1743106596823,4.5329,2003.2,2003.1,1.4927374]
[1743106597222,3.2078,2003.2,2003.1,2.8698374]
[1743106598527,4.5329,2003.2,2003.1,2.86944634]
[1743106600323,5.53148,2003.2,2003.1,2.86944634]
[1743106601827,5.53148,2003.2,2003.1,2.20224634]
[1743106602225,4.5329,2003.2,2003.1,2.20197961]
[1743106602428,5.53148,2003.2,2003.1,2.20197961]
[1743106603823,4.5329,2003.2,2003.1,2.20197961]
[1743106604025,5.53148,2003.2,2003.1,2.20197961]
[1743106604625,5.53148,2003.2,2003.1,5.39997961]
[1743106609127,5.53148,2003.2,2003.1,5.4003482]
[1743106609828,5.53148,2003.2,2003.1,5.40053672]
[1743106610741,4.5329,2003.2,2003.1,5.40053672]
[1743106610939,5.53148,2003.2,2003.1,5.40053672]
[1743106611139,3.2078,2003.2,2003.1,5.40053672]
[1743106611544,3.2078,2003.2,2003.1,6.08076566]
[1743106612832,3.2078,2003.2,2003.1,6.08074621]
[1743106615643,3.2078,2003.2,2003.1,6.08075003]
[1743106617445,3.2078,2003.2,2003.1,6.08092561]
[1743106619457,3.2078,2003.2,2003.1,6.0810709]
[1743106621046,3.2078,2003.2,2003.1,6.08152874]
[1743106621755,4.5282,2003.2,2003.1,6.08152874]
[1743106622638,5.52678,2003.2,2003.1,2.17442664]
[1743106622850,6.19008,2003.2,2003.1,5.37142664]
[1743106623552,6.19008,2003.2,2003.1,2.17442664]
[1743106624146,6.19008,2003.2,2003.1,1.17579664]
[1743106624646,6.19008,2003.2,2003.1,1.17631044]
[1743106624952,6.19008,2003.2,2003.1,0.49513755]
[1743106625251,6.19008,2003.2,2003.1,1.17631154]
[1743106626249,0.99868,2003.0,2002.9,1.00619606]
[1743106626448,0.99868,2003.0,2002.9,5.38049316]
[1743106627053,1.69798,2003.0,2002.9,5.38049316]
[1743106628252,1.69798,2003.0,2002.9,5.38022766]
[1743106629750,1.69798,2003.0,2002.9,4.38152766]
[1743106630050,1.69798,2003.0,2002.9,1.18452766]
[1743106630951,1.69798,2003.0,2002.9,2.18325766]
[1743106631346,0.6993,2003.0,2002.9,2.18325766]
[1743106631542,1.4232,2003.1,2003.0,0.99868]
[1743106631751,1.4232,2003.1,2003.0,3.5952116]
[1743106632056,3.8711,2003.2,2003.1,0.99863]
[1743106632254,3.8711,2003.2,2003.1,3.59452639]
[1743106632255,4.86968,2003.2,2003.1,3.59452639]
[1743106633155,4.86968,2003.2,2003.1,3.59455741]
[1743106633342,4.86968,2003.2,2003.1,2.91352107]
[1743106633547,4.86968,2003.2,2003.1,3.59453543]
[1743106633955,4.86968,2003.2,2003.1,3.59454111]
[1743106635760,4.86968,2003.2,2003.1,3.59451131]
[1743106635959,4.86968,2003.2,2003.1,2.91351521]
[1743106636557,4.86968,2003.2,2003.1,0.49538521]
[1743106637656,0.99863,2003.1,2003.0,2.38486]
[1743106637858,3.09143,2003.1,2003.0,3.56121585]
[1743106638057,3.09143,2003.1,2003.0,0.49537538]
[1743106639563,0.99868,2003.0,2002.9,5.58938606]
[1743106639862,2.37548,2003.0,2002.9,6.76558278]
[1743106640561,2.37548,2003.0,2002.9,3.56858278]
[1743106641358,2.37548,2003.0,2002.9,3.07327318]
[1743106641558,2.37548,2003.0,2002.9,3.56839809]
[1743106642151,1.68395,2003.1,2003.0,0.99868]
[1743106642457,0.99865,2003.1,2003.0,3.57719203]
[1743106642659,2.42085,2003.1,2003.0,3.57719203]
[1743106642865,4.86972,2003.2,2003.1,0.99863]
[1743106643066,5.62862,2003.2,2003.1,4.98504203]
[1743106643260,3.2078,2003.2,2003.1,4.98504641]
[1743106643455,1.66960905,2003.4,2003.3,0.99853]